[Event "2026 Biel Blitz Open"]
[Site "Biel, CH"]
[Date "2026.07.19"]
[Round "13"]
[White "Bajraktari, Perparim"]
[Black "Elmi, Saad Abobaker"]
[Result "0-1"]
[Board "14"]
[TimeControl "180+2"]
[WhiteFideId "1307711"]
[BlackFideId "1553259"]
[WhiteElo "2045"]
[BlackElo "2409"]
[BlackTitle "IM"]
[WhiteClock "0:00:32"]
[BlackClock "0:00:25"]
[Variant "Standard"]
[EndDate "2026.07.19"]
[EndTime "16:27:52"]

1. c4 {[%clk 0:03:02]}  e6 {[%clk 0:03:03]} 2. b3 {[%clk 0:03:03]}  d5 {[%clk 0:03:04]} 3. g3 {[%clk 0:03:04]}  Nf6 {[%clk 0:03:03]}
4. Bb2 {[%clk 0:03:05]}  d4 {[%clk 0:03:04]} 5. Bg2 {[%clk 0:03:04]}  c5 {[%clk 0:03:06]} 6. e3 {[%clk 0:03:04]}  Nc6 {[%clk 0:03:05]}
7. Nf3 {[%clk 0:03:04]}  Be7 {[%clk 0:03:05]} 8. exd4 {[%clk 0:03:04]}  cxd4 {[%clk 0:03:07]} 9. O-O {[%clk 0:03:05]}  O-O {[%clk 0:03:07]}
10. d3 {[%clk 0:03:01]}  e5 {[%clk 0:03:06]} 11. Re1 {[%clk 0:03:06]}  Nd7 {[%clk 0:03:07]} 12. Nbd2 {[%clk 0:02:58]}  Qc7 {[%clk 0:03:00]}
13. a3 {[%clk 0:02:58]}  a5 {[%clk 0:03:02]} 14. Rc1 {[%clk 0:02:50]}  Nc5 {[%clk 0:03:00]} 15. Ne4 {[%clk 0:02:35]}  Bf5 {[%clk 0:03:00]}
16. Nxc5 {[%clk 0:02:35]}  Bxc5 {[%clk 0:03:01]} 17. Ng5 {[%clk 0:02:24]}  Qe7 {[%clk 0:02:42]} 18. Ne4 {[%clk 0:02:10]}  Bxa3 {[%clk 0:02:43]}
19. Bxa3 {[%clk 0:02:07]}  Qxa3 {[%clk 0:02:44]} 20. g4 {[%clk 0:01:54]}  Be6 {[%clk 0:02:30]} 21. Ng5 {[%clk 0:01:43]}  Bd7 {[%clk 0:02:22]}
22. Be4 {[%clk 0:01:38]}  h6 {[%clk 0:02:23]} 23. Nh3 {[%clk 0:01:29]}  Qe7 {[%clk 0:02:10]} 24. Qf3 {[%clk 0:01:32]}  Qh4 {[%clk 0:02:09]}
25. Bf5 {[%clk 0:01:25]}  Bxf5 {[%clk 0:01:43]} 26. gxf5 {[%clk 0:01:27]}  Qf6 {[%clk 0:01:26]} 27. Kh1 {[%clk 0:01:21]}  g6 {[%clk 0:01:17]}
28. Rg1 {[%clk 0:01:20]}  Ne7 {[%clk 0:01:17]} 29. Qxb7 {[%clk 0:00:57]}  Rab8 {[%clk 0:01:15]} 30. Qe4 {[%clk 0:00:51]}  Qxf5 {[%clk 0:01:08]}
31. Qxf5 {[%clk 0:00:40]}  Nxf5 {[%clk 0:01:09]} 32. Rce1 {[%clk 0:00:37]}  Rfe8 {[%clk 0:01:09]} 33. f4 {[%clk 0:00:35]}  Rxb3 {[%clk 0:01:09]}
34. fxe5 {[%clk 0:00:33]}  Rxd3 {[%clk 0:01:05]} 35. Nf4 {[%clk 0:00:34]}  Rf3 {[%clk 0:00:57]} 36. Nd5 {[%clk 0:00:34]}  Kg7 {[%clk 0:00:48]}
37. Nf6 {[%clk 0:00:33]}  Re6 {[%clk 0:00:46]} 38. Nh5+ {[%clk 0:00:33]}  Kf8 {[%clk 0:00:46]} 39. Nf6 {[%clk 0:00:32]}  d3 {[%clk 0:00:46]}
40. Rb1 {[%clk 0:00:32]}  Ng7 {[%clk 0:00:25]} 0-1

[Event "2026 Biel Blitz Open"]
[Site "Biel, CH"]
[Date "2026.07.19"]
[Round "13"]
[White "Haimovich, Tal"]
[Black "Stefan, Romulus-Cristian"]
[Result "1-0"]
[Board "15"]
[TimeControl "180+2"]
[WhiteFideId "2801698"]
[BlackFideId "1232835"]
[WhiteElo "2347"]
[BlackElo "2048"]
[WhiteTitle "IM"]
[BlackTitle "CM"]
[WhiteClock "0:00:15"]
[BlackClock "0:00:06"]
[Variant "Standard"]
[EndDate "2026.07.19"]
[EndTime "16:24:21"]

1. Nf3 {[%clk 0:03:03]}  d5 {[%clk 0:03:03]} 2. b3 {[%clk 0:03:04]}  Nf6 {[%clk 0:03:03]} 3. Bb2 {[%clk 0:03:05]}  c6 {[%clk 0:03:05]}
4. e3 {[%clk 0:03:03]}  Bg4 {[%clk 0:03:06]} 5. Be2 {[%clk 0:03:03]}  Nbd7 {[%clk 0:03:07]} 6. c4 {[%clk 0:03:04]}  e6 {[%clk 0:03:08]}
7. d3 {[%clk 0:03:04]}  Bd6 {[%clk 0:03:02]} 8. Nbd2 {[%clk 0:03:04]}  Qe7 {[%clk 0:02:56]} 9. O-O {[%clk 0:03:02]}  Ba3 {[%clk 0:02:48]}
10. Bxa3 {[%clk 0:02:56]}  Qxa3 {[%clk 0:02:49]} 11. Qc2 {[%clk 0:02:57]}  O-O {[%clk 0:02:47]} 12. Rfd1 {[%clk 0:02:51]}  Rfe8 {[%clk 0:02:47]}
13. Nf1 {[%clk 0:02:51]}  Qe7 {[%clk 0:02:39]} 14. Ng3 {[%clk 0:02:50]}  Rac8 {[%clk 0:02:38]} 15. Rac1 {[%clk 0:02:46]}  h6 {[%clk 0:02:30]}
16. h3 {[%clk 0:02:45]}  Bxf3 {[%clk 0:02:31]} 17. Bxf3 {[%clk 0:02:46]}  Qf8 {[%clk 0:02:13]} 18. d4 {[%clk 0:02:39]}  g6 {[%clk 0:02:08]}
19. Qd2 {[%clk 0:02:35]}  h5 {[%clk 0:02:06]} 20. Qa5 {[%clk 0:02:30]}  a6 {[%clk 0:02:03]} 21. b4 {[%clk 0:02:18]}  Qd6 {[%clk 0:01:11]}
22. Rc2 {[%clk 0:01:43]}  b6 {[%clk 0:01:11]} 23. Qa3 {[%clk 0:01:41]}  a5 {[%clk 0:01:12]} 24. Rb1 {[%clk 0:01:31]}  Ra8 {[%clk 0:01:11]}
25. c5 {[%clk 0:01:20]}  Qe7 {[%clk 0:01:02]} 26. cxb6 {[%clk 0:01:02]}  Nxb6 {[%clk 0:01:01]} 27. Be2 {[%clk 0:00:51]}  Rec8 {[%clk 0:00:58]}
28. Qb3 {[%clk 0:00:50]}  a4 {[%clk 0:00:49]} 29. Qc3 {[%clk 0:00:48]}  h4 {[%clk 0:00:49]} 30. Nf1 {[%clk 0:00:47]}  Ne4 {[%clk 0:00:50]}
31. Qb2 {[%clk 0:00:45]}  a3 {[%clk 0:00:46]} 32. Qc1 {[%clk 0:00:44]}  Qd6 {[%clk 0:00:40]} 33. Nd2 {[%clk 0:00:42]}  f5 {[%clk 0:00:24]}
34. Nf3 {[%clk 0:00:43]}  g5 {[%clk 0:00:18]} 35. Ne5 {[%clk 0:00:43]}  Nd7 {[%clk 0:00:14]} 36. Nxc6 {[%clk 0:00:41]}  Kg7 {[%clk 0:00:11]}
37. b5 {[%clk 0:00:42]}  Nb6 {[%clk 0:00:10]} 38. Bd3 {[%clk 0:00:33]}  Rc7 {[%clk 0:00:04]} 39. Ne5 {[%clk 0:00:25]}  Rxc2 {[%clk 0:00:05]}
40. Qxc2 {[%clk 0:00:27]}  Rc8 {[%clk 0:00:06]} 41. Nc6 {[%clk 0:00:27]}  Na4 {[%clk 0:00:06]} 42. Qxa4 {[%clk 0:00:15]} 1-0

[Event "2026 Biel Blitz Open"]
[Site "Biel, CH"]
[Date "2026.07.19"]
[Round "13"]
[White "Maruntis, Patrik-Robert"]
[Black "Nguyen Thi Mai Hung"]
[Result "1-0"]
[Board "16"]
[TimeControl "180+2"]
[WhiteFideId "1259997"]
[BlackFideId "12401676"]
[WhiteElo "2167"]
[BlackElo "2039"]
[BlackTitle "WGM"]
[WhiteClock "0:00:09"]
[BlackClock "0:00:05"]
[Variant "Standard"]
[EndDate "2026.07.19"]
[EndTime "16:20:16"]

1. e4 {[%clk 0:03:01]}  e6 {[%clk 0:03:04]} 2. d4 {[%clk 0:03:02]}  d5 {[%clk 0:03:05]} 3. Nc3 {[%clk 0:03:01]}  Nf6 {[%clk 0:03:06]}
4. e5 {[%clk 0:03:02]}  Nfd7 {[%clk 0:03:07]} 5. f4 {[%clk 0:03:03]}  c5 {[%clk 0:03:08]} 6. Nf3 {[%clk 0:03:03]}  Nc6 {[%clk 0:03:10]}
7. Be3 {[%clk 0:03:04]}  Be7 {[%clk 0:03:11]} 8. Be2 {[%clk 0:03:05]}  O-O {[%clk 0:03:10]} 9. O-O {[%clk 0:03:02]}  b6 {[%clk 0:03:09]}
10. f5 {[%clk 0:02:40]}  cxd4 {[%clk 0:03:02]} 11. Nxd4 {[%clk 0:02:02]}  Ndxe5 {[%clk 0:03:03]} 12. Kh1 {[%clk 0:01:56]}  Bd7 {[%clk 0:02:35]}
13. Ncb5 {[%clk 0:01:22]}  Bf6 {[%clk 0:02:17]} 14. c3 {[%clk 0:00:51]}  a6 {[%clk 0:02:04]} 15. Nxc6 {[%clk 0:00:45]}  Nxc6 {[%clk 0:02:04]}
16. fxe6 {[%clk 0:00:39]}  fxe6 {[%clk 0:02:03]} 17. Nd4 {[%clk 0:00:40]}  b5 {[%clk 0:01:53]} 18. Bg4 {[%clk 0:00:32]}  e5 {[%clk 0:01:22]}
19. Ne6 {[%clk 0:00:24]}  Bxe6 {[%clk 0:01:03]} 20. Bxe6+ {[%clk 0:00:25]}  Kh8 {[%clk 0:01:04]} 21. Bxd5 {[%clk 0:00:24]}  Rc8 {[%clk 0:01:04]}
22. Bc5 {[%clk 0:00:17]}  Ne7 {[%clk 0:00:58]} 23. Bxe7 {[%clk 0:00:09]}  Qxe7 {[%clk 0:00:47]} 24. Be4 {[%clk 0:00:06]}  Rc4 {[%clk 0:00:45]}
25. Bd3 {[%clk 0:00:06]}  Rh4 {[%clk 0:00:46]} 26. g3 {[%clk 0:00:05]}  Qb7+ {[%clk 0:00:36]} 27. Qf3 {[%clk 0:00:06]}  Qxf3+ {[%clk 0:00:31]}
28. Rxf3 {[%clk 0:00:07]}  Rh6 {[%clk 0:00:09]} 29. a4 {[%clk 0:00:06]}  Rb8 {[%clk 0:00:05]} 30. axb5 {[%clk 0:00:07]}  axb5 {[%clk 0:00:06]}
31. Bxb5 {[%clk 0:00:08]}  e4 {[%clk 0:00:07]} 32. Re3 {[%clk 0:00:06]}  Kg8 {[%clk 0:00:06]} 33. Bc4+ {[%clk 0:00:07]}  Kf8 {[%clk 0:00:07]}
34. b3 {[%clk 0:00:06]}  Rh5 {[%clk 0:00:08]} 35. Rae1 {[%clk 0:00:06]}  Re5 {[%clk 0:00:09]} 36. Rxe4 {[%clk 0:00:06]}  Rxe4 {[%clk 0:00:10]}
37. Rxe4 {[%clk 0:00:07]}  Bxc3 {[%clk 0:00:11]} 38. Rf4+ {[%clk 0:00:08]}  Bf6 {[%clk 0:00:12]} 39. Kg2 {[%clk 0:00:06]}  h6 {[%clk 0:00:11]}
40. Rf2 {[%clk 0:00:06]}  Ke7 {[%clk 0:00:13]} 41. Ra2 {[%clk 0:00:07]}  Rb7 {[%clk 0:00:13]} 42. h4 {[%clk 0:00:07]}  Be5 {[%clk 0:00:11]}
43. Kf3 {[%clk 0:00:08]}  Kf6 {[%clk 0:00:12]} 44. Ra6+ {[%clk 0:00:07]}  Ke7 {[%clk 0:00:04]} 45. Re6+ {[%clk 0:00:07]}  Kd7 {[%clk 0:00:05]}
46. Rxe5 {[%clk 0:00:09]} 1-0

[Event "2026 Biel Blitz Open"]
[Site "Biel, CH"]
[Date "2026.07.19"]
[Round "13"]
[White "Schweizer, Samuel"]
[Black "Kelecevic, Nedeljko"]
[Result "1/2-1/2"]
[Board "17"]
[TimeControl "180+2"]
[WhiteFideId "1325353"]
[BlackFideId "14400537"]
[WhiteElo "2006"]
[BlackElo "2150"]
[BlackTitle "IM"]
[WhiteClock "0:00:23"]
[BlackClock "0:00:11"]
[Variant "Standard"]
[EndDate "2026.07.19"]
[EndTime "16:24:30"]

1. e4 {[%clk 0:03:02]}  e6 {[%clk 0:03:04]} 2. d4 {[%clk 0:03:02]}  d5 {[%clk 0:03:05]} 3. Bd3 {[%clk 0:03:03]}  dxe4 {[%clk 0:03:05]}
4. Bxe4 {[%clk 0:03:04]}  Nf6 {[%clk 0:03:06]} 5. Bf3 {[%clk 0:03:03]}  c5 {[%clk 0:03:07]} 6. c3 {[%clk 0:03:04]}  cxd4 {[%clk 0:03:07]}
7. cxd4 {[%clk 0:03:05]}  Nc6 {[%clk 0:03:08]} 8. Ne2 {[%clk 0:03:06]}  Be7 {[%clk 0:03:05]} 9. O-O {[%clk 0:03:05]}  O-O {[%clk 0:03:07]}
10. g3 {[%clk 0:03:04]}  Nb4 {[%clk 0:03:08]} 11. Nbc3 {[%clk 0:03:04]}  Nbd5 {[%clk 0:03:09]} 12. Bg2 {[%clk 0:03:05]}  Bd7 {[%clk 0:03:08]}
13. Nxd5 {[%clk 0:03:04]}  Nxd5 {[%clk 0:03:09]} 14. Bd2 {[%clk 0:02:58]}  Bc6 {[%clk 0:03:09]} 15. a3 {[%clk 0:02:57]}  a5 {[%clk 0:03:06]}
16. Rc1 {[%clk 0:02:57]}  Bf6 {[%clk 0:03:00]} 17. Qb3 {[%clk 0:02:46]}  a4 {[%clk 0:03:00]} 18. Qd3 {[%clk 0:02:46]}  Qd7 {[%clk 0:02:49]}
19. Rfd1 {[%clk 0:02:45]}  Bb5 {[%clk 0:02:48]} 20. Qf3 {[%clk 0:02:41]}  Bxe2 {[%clk 0:02:36]} 21. Qxe2 {[%clk 0:02:42]}  Rac8 {[%clk 0:02:33]}
22. Rc4 {[%clk 0:02:15]}  Rxc4 {[%clk 0:02:30]} 23. Qxc4 {[%clk 0:02:15]}  Rc8 {[%clk 0:02:31]} 24. Qd3 {[%clk 0:02:14]}  h6 {[%clk 0:02:22]}
25. h4 {[%clk 0:02:14]}  b5 {[%clk 0:02:08]} 26. Bf1 {[%clk 0:02:14]}  Rc4 {[%clk 0:02:04]} 27. Be3 {[%clk 0:02:03]}  Qc6 {[%clk 0:01:54]}
28. Qe4 {[%clk 0:01:56]}  Nxe3 {[%clk 0:01:48]} 29. Qxe3 {[%clk 0:01:47]}  Rc2 {[%clk 0:01:41]} 30. Bd3 {[%clk 0:01:38]}  Rxb2 {[%clk 0:01:25]}
31. Rc1 {[%clk 0:01:39]}  Qb7 {[%clk 0:01:10]} 32. d5 {[%clk 0:01:31]}  Qd7 {[%clk 0:00:41]} 33. Qe4 {[%clk 0:01:06]}  g6 {[%clk 0:00:17]}
34. dxe6 {[%clk 0:00:59]}  Qxe6 {[%clk 0:00:23]} 35. Qa8+ {[%clk 0:00:50]}  Kg7 {[%clk 0:00:20]} 36. Qb8 {[%clk 0:00:42]}  Bd4 {[%clk 0:00:14]}
37. Rf1 {[%clk 0:00:39]}  Rxf2 {[%clk 0:00:11]} 38. Rxf2 {[%clk 0:00:29]}  Qe1+ {[%clk 0:00:13]} 39. Kg2 {[%clk 0:00:26]}  Qxf2+ {[%clk 0:00:13]}
40. Kh3 {[%clk 0:00:26]}  Qg1 {[%clk 0:00:12]} 41. Qb7 {[%clk 0:00:18]}  Qe3 {[%clk 0:00:09]} 42. Qe4 {[%clk 0:00:18]}  Qxe4 {[%clk 0:00:09]}
43. Bxe4 {[%clk 0:00:19]}  b4 {[%clk 0:00:09]} 44. axb4 {[%clk 0:00:19]}  a3 {[%clk 0:00:09]} 45. Bd5 {[%clk 0:00:20]}  f5 {[%clk 0:00:05]}
46. Kg2 {[%clk 0:00:21]}  Kf6 {[%clk 0:00:10]} 47. Ba2 {[%clk 0:00:22]}  Ke5 {[%clk 0:00:11]} 48. Kf3 {[%clk 0:00:23]}  g5 {[%clk 0:00:11]} 1/2-1/2

[Event "2026 Biel Blitz Open"]
[Site "Biel, CH"]
[Date "2026.07.19"]
[Round "13"]
[White "Dai, Wenzhi"]
[Black "Hakimifard, Ghazal"]
[Result "1-0"]
[Board "18"]
[TimeControl "180+2"]
[WhiteFideId "8608369"]
[BlackFideId "12506540"]
[WhiteElo "1943"]
[BlackElo "2130"]
[BlackTitle "WGM"]
[WhiteClock "0:00:15"]
[BlackClock "0:00:08"]
[Variant "Standard"]
[EndDate "2026.07.19"]
[EndTime "16:24:38"]

1. e4 {[%clk 0:03:02]}  c5 {[%clk 0:03:04]} 2. Nf3 {[%clk 0:03:03]}  e6 {[%clk 0:03:05]} 3. c3 {[%clk 0:03:05]}  Nf6 {[%clk 0:03:06]}
4. e5 {[%clk 0:03:06]}  Nd5 {[%clk 0:03:07]} 5. d4 {[%clk 0:03:07]}  cxd4 {[%clk 0:03:08]} 6. cxd4 {[%clk 0:03:08]}  d6 {[%clk 0:03:09]}
7. Bc4 {[%clk 0:03:04]}  Nc6 {[%clk 0:03:11]} 8. Qe2 {[%clk 0:02:57]}  Be7 {[%clk 0:03:10]} 9. O-O {[%clk 0:02:56]}  O-O {[%clk 0:03:06]}
10. Nc3 {[%clk 0:02:52]}  Nxc3 {[%clk 0:03:05]} 11. bxc3 {[%clk 0:02:53]}  Qa5 {[%clk 0:03:00]} 12. Bd2 {[%clk 0:02:27]}  dxe5 {[%clk 0:03:00]}
13. dxe5 {[%clk 0:02:26]}  b6 {[%clk 0:02:36]} 14. Bd3 {[%clk 0:02:00]}  Bb7 {[%clk 0:02:32]} 15. Qe4 {[%clk 0:01:42]}  g6 {[%clk 0:02:33]}
16. Rfe1 {[%clk 0:01:42]}  Rfd8 {[%clk 0:02:30]} 17. Qe2 {[%clk 0:01:37]}  Rd7 {[%clk 0:02:17]} 18. Bc2 {[%clk 0:01:20]}  Rad8 {[%clk 0:02:15]}
19. Bb3 {[%clk 0:00:41]}  Qa3 {[%clk 0:01:39]} 20. Bg5 {[%clk 0:00:38]}  Ba6 {[%clk 0:01:35]} 21. Qe3 {[%clk 0:00:35]}  Na5 {[%clk 0:01:25]}
22. Bxe7 {[%clk 0:00:36]}  Qxe7 {[%clk 0:01:25]} 23. Ng5 {[%clk 0:00:34]}  Rd3 {[%clk 0:01:09]} 24. Qf4 {[%clk 0:00:35]}  Rxc3 {[%clk 0:01:01]}
25. Ne4 {[%clk 0:00:36]}  Rc5 {[%clk 0:00:15]} 26. Nxc5 {[%clk 0:00:16]}  bxc5 {[%clk 0:00:16]} 27. Rad1 {[%clk 0:00:16]}  Rc8 {[%clk 0:00:17]}
28. Bc2 {[%clk 0:00:15]}  Bb7 {[%clk 0:00:15]} 29. Rd2 {[%clk 0:00:14]}  Bd5 {[%clk 0:00:16]} 30. a4 {[%clk 0:00:15]}  Nc4 {[%clk 0:00:13]}
31. Rd3 {[%clk 0:00:16]}  Kg7 {[%clk 0:00:10]} 32. Rh3 {[%clk 0:00:17]}  h5 {[%clk 0:00:11]} 33. g4 {[%clk 0:00:16]}  Rh8 {[%clk 0:00:06]}
34. gxh5 {[%clk 0:00:16]}  gxh5 {[%clk 0:00:07]} 35. Rg3+ {[%clk 0:00:17]}  Kf8 {[%clk 0:00:08]} 36. Rb1 {[%clk 0:00:15]}  Qc7 {[%clk 0:00:09]}
37. Qf6 {[%clk 0:00:14]}  Qxe5 {[%clk 0:00:09]} 38. Rb8+ {[%clk 0:00:15]}  Qxb8 {[%clk 0:00:08]} 39. Qxh8+ {[%clk 0:00:15]} 1-0

[Event "2026 Biel Blitz Open"]
[Site "Biel, CH"]
[Date "2026.07.19"]
[Round "13"]
[White "Ragavan, Samarth Rajesh"]
[Black "Vihaan Dumir"]
[Result "1-0"]
[Board "19"]
[TimeControl "180+2"]
[WhiteFideId "39918106"]
[BlackFideId "25901010"]
[WhiteElo "2101"]
[BlackElo "1965"]
[BlackTitle "CM"]
[WhiteClock "0:00:40"]
[BlackClock "0:00:09"]
[Variant "Standard"]
[EndDate "2026.07.19"]
[EndTime "16:20:24"]

1. d4 {[%clk 0:03:04]}  e6 {[%clk 0:03:03]} 2. c4 {[%clk 0:03:04]}  f5 {[%clk 0:03:05]} 3. g3 {[%clk 0:03:05]}  Nf6 {[%clk 0:03:06]}
4. Bg2 {[%clk 0:03:06]}  d5 {[%clk 0:03:07]} 5. Nc3 {[%clk 0:03:06]}  c6 {[%clk 0:03:06]} 6. cxd5 {[%clk 0:03:06]}  exd5 {[%clk 0:03:07]}
7. Nf3 {[%clk 0:03:07]}  Bd6 {[%clk 0:03:08]} 8. O-O {[%clk 0:03:05]}  O-O {[%clk 0:03:08]} 9. Rb1 {[%clk 0:03:06]}  Qe7 {[%clk 0:03:08]}
10. a3 {[%clk 0:03:05]}  a5 {[%clk 0:03:09]} 11. Bd2 {[%clk 0:03:00]}  Ne4 {[%clk 0:03:10]} 12. Qc2 {[%clk 0:02:50]}  f4 {[%clk 0:03:04]}
13. Nxe4 {[%clk 0:02:48]}  dxe4 {[%clk 0:03:05]} 14. Ne5 {[%clk 0:02:49]}  Bxe5 {[%clk 0:03:03]} 15. dxe5 {[%clk 0:02:50]}  f3 {[%clk 0:03:04]}
16. exf3 {[%clk 0:02:47]}  exf3 {[%clk 0:03:05]} 17. Bh1 {[%clk 0:02:45]}  Bf5 {[%clk 0:02:58]} 18. Qb3+ {[%clk 0:02:45]}  Be6 {[%clk 0:02:58]}
19. Qc3 {[%clk 0:02:42]}  Bd5 {[%clk 0:02:54]} 20. Rfe1 {[%clk 0:02:40]}  Nd7 {[%clk 0:02:51]} 21. b4 {[%clk 0:02:40]}  axb4 {[%clk 0:02:39]}
22. Rxb4 {[%clk 0:02:32]}  b5 {[%clk 0:02:35]} 23. Re3 {[%clk 0:01:56]}  Nb6 {[%clk 0:02:36]} 24. Bxf3 {[%clk 0:01:49]}  Bxf3 {[%clk 0:02:30]}
25. Rxf3 {[%clk 0:01:50]}  Nd5 {[%clk 0:02:31]} 26. Qxc6 {[%clk 0:01:42]}  Nxb4 {[%clk 0:01:08]} 27. Bxb4 {[%clk 0:01:41]}  Qxe5 {[%clk 0:01:09]}
28. Rxf8+ {[%clk 0:01:34]}  Rxf8 {[%clk 0:01:10]} 29. Bxf8 {[%clk 0:01:35]}  Kxf8 {[%clk 0:01:11]} 30. Kg2 {[%clk 0:01:32]}  Qb2 {[%clk 0:01:07]}
31. Qd6+ {[%clk 0:01:32]}  Kf7 {[%clk 0:01:01]} 32. h4 {[%clk 0:01:27]}  Qe2 {[%clk 0:00:53]} 33. Qd5+ {[%clk 0:01:27]}  Ke7 {[%clk 0:00:47]}
34. Qg5+ {[%clk 0:01:25]}  Kf7 {[%clk 0:00:40]} 35. Qf4+ {[%clk 0:01:25]}  Kg8 {[%clk 0:00:36]} 36. Qf3 {[%clk 0:01:21]}  Qc4 {[%clk 0:00:35]}
37. Qe3 {[%clk 0:01:10]}  h6 {[%clk 0:00:31]} 38. Qe8+ {[%clk 0:01:00]}  Kh7 {[%clk 0:00:32]} 39. Qe3 {[%clk 0:01:01]}  Kg8 {[%clk 0:00:30]}
40. Kf3 {[%clk 0:00:55]}  Qd5+ {[%clk 0:00:26]} 41. Qe4 {[%clk 0:00:48]}  Qb3+ {[%clk 0:00:27]} 42. Kg2 {[%clk 0:00:43]}  Qxa3 {[%clk 0:00:22]}
43. Qd5+ {[%clk 0:00:44]}  Kh8 {[%clk 0:00:21]} 44. Qxb5 {[%clk 0:00:44]}  Qa8+ {[%clk 0:00:22]} 45. Kh2 {[%clk 0:00:44]}  Qf3 {[%clk 0:00:24]}
46. Qe8+ {[%clk 0:00:43]}  Kh7 {[%clk 0:00:24]} 47. Qe3 {[%clk 0:00:43]}  Qf5 {[%clk 0:00:22]} 48. f3 {[%clk 0:00:42]}  h5 {[%clk 0:00:21]}
49. Kg2 {[%clk 0:00:35]}  Qc2+ {[%clk 0:00:22]} 50. Qf2 {[%clk 0:00:34]}  Qf5 {[%clk 0:00:22]} 51. Qe2 {[%clk 0:00:35]}  Kg6 {[%clk 0:00:20]}
52. Qe4 {[%clk 0:00:36]}  Qxe4 {[%clk 0:00:18]} 53. fxe4 {[%clk 0:00:38]}  Kf6 {[%clk 0:00:19]} 54. Kf3 {[%clk 0:00:39]}  Ke5 {[%clk 0:00:17]}
55. Ke3 {[%clk 0:00:40]}  g6 {[%clk 0:00:10]} 56. Kf3 {[%clk 0:00:37]}  Ke6 {[%clk 0:00:07]} 57. Kf4 {[%clk 0:00:38]}  Kf6 {[%clk 0:00:08]}
58. e5+ {[%clk 0:00:38]}  Kg7 {[%clk 0:00:05]} 59. Kg5 {[%clk 0:00:38]}  Kf7 {[%clk 0:00:05]} 60. e6+ {[%clk 0:00:35]}  Kg7 {[%clk 0:00:04]}
61. e7 {[%clk 0:00:37]}  Kf7 {[%clk 0:00:05]} 62. e8=Q+ {[%clk 0:00:36]}  Kxe8 {[%clk 0:00:06]} 63. Kxg6 {[%clk 0:00:37]}  Ke7 {[%clk 0:00:07]}
64. Kxh5 {[%clk 0:00:38]}  Kf7 {[%clk 0:00:08]} 65. Kg5 {[%clk 0:00:39]}  Kg7 {[%clk 0:00:09]} 66. h5 {[%clk 0:00:40]} 1-0

[Event "2026 Biel Blitz Open"]
[Site "Biel, CH"]
[Date "2026.07.19"]
[Round "13"]
[White "Matsumura, Cocoro"]
[Black "Harish, Neeraj"]
[Result "0-1"]
[Board "20"]
[TimeControl "180+2"]
[WhiteFideId "36087114"]
[BlackFideId "30958130"]
[WhiteElo "2131"]
[BlackElo "1920"]
[WhiteTitle "CM"]
[BlackTitle "CM"]
[WhiteClock "0:00:20"]
[BlackClock "0:00:14"]
[Variant "Standard"]
[EndDate "2026.07.19"]
[EndTime "16:20:50"]

1. e4 {[%clk 0:03:04]}  e5 {[%clk 0:03:03]} 2. Nf3 {[%clk 0:03:05]}  Nc6 {[%clk 0:03:05]} 3. Bb5 {[%clk 0:03:04]}  a6 {[%clk 0:03:06]}
4. Ba4 {[%clk 0:03:05]}  Nf6 {[%clk 0:03:07]} 5. O-O {[%clk 0:03:06]}  d6 {[%clk 0:03:08]} 6. c3 {[%clk 0:03:03]}  Bd7 {[%clk 0:03:09]}
7. d4 {[%clk 0:02:58]}  g6 {[%clk 0:03:10]} 8. d5 {[%clk 0:02:47]}  Ne7 {[%clk 0:03:09]} 9. Bxd7+ {[%clk 0:02:47]}  Nxd7 {[%clk 0:03:09]}
10. c4 {[%clk 0:02:46]}  Bg7 {[%clk 0:03:10]} 11. Nc3 {[%clk 0:02:47]}  O-O {[%clk 0:03:10]} 12. Be3 {[%clk 0:02:40]}  h6 {[%clk 0:03:09]}
13. b4 {[%clk 0:02:38]}  f5 {[%clk 0:03:06]} 14. Rc1 {[%clk 0:02:30]}  Nf6 {[%clk 0:03:04]} 15. exf5 {[%clk 0:02:26]}  gxf5 {[%clk 0:03:05]}
16. Ne1 {[%clk 0:02:03]}  Ng4 {[%clk 0:02:46]} 17. Bd2 {[%clk 0:01:59]}  Qe8 {[%clk 0:02:22]} 18. h3 {[%clk 0:01:50]}  Nf6 {[%clk 0:02:23]}
19. f4 {[%clk 0:01:51]}  e4 {[%clk 0:02:06]} 20. Be3 {[%clk 0:01:49]}  Nh5 {[%clk 0:01:57]} 21. c5 {[%clk 0:01:44]}  Qg6 {[%clk 0:01:47]}
22. Ne2 {[%clk 0:01:42]}  Ng3 {[%clk 0:01:34]} 23. Rf2 {[%clk 0:01:31]}  Nxe2+ {[%clk 0:01:15]} 24. Rxe2 {[%clk 0:01:30]}  Rac8 {[%clk 0:01:00]}
25. Rec2 {[%clk 0:01:26]}  Qf7 {[%clk 0:01:00]} 26. Rd2 {[%clk 0:01:13]}  Kh7 {[%clk 0:00:57]} 27. Nc2 {[%clk 0:01:06]}  Rg8 {[%clk 0:00:50]}
28. Bd4 {[%clk 0:01:01]}  Bxd4+ {[%clk 0:00:46]} 29. Rxd4 {[%clk 0:01:01]}  Rg3 {[%clk 0:00:42]} 30. Qd2 {[%clk 0:00:48]}  Rcg8 {[%clk 0:00:42]}
31. Ne3 {[%clk 0:00:49]}  Rxh3 {[%clk 0:00:40]} 32. cxd6 {[%clk 0:00:45]}  cxd6 {[%clk 0:00:41]} 33. Rc7 {[%clk 0:00:46]}  Rg7 {[%clk 0:00:35]}
34. Rxb7 {[%clk 0:00:38]}  Qh5 {[%clk 0:00:30]} 35. Kf2 {[%clk 0:00:30]}  Qh4+ {[%clk 0:00:30]} 36. Ke2 {[%clk 0:00:30]}  Qxf4 {[%clk 0:00:23]}
37. Rxe7 {[%clk 0:00:21]}  Rxe3+ {[%clk 0:00:10]} 38. Qxe3 {[%clk 0:00:20]}  Qg4+ {[%clk 0:00:11]} 39. Kf2 {[%clk 0:00:15]}  Rxe7 {[%clk 0:00:12]}
40. g3 {[%clk 0:00:15]}  Rc7 {[%clk 0:00:12]} 41. Rd2 {[%clk 0:00:15]}  Kg6 {[%clk 0:00:10]} 42. Qf4 {[%clk 0:00:15]}  Qxf4+ {[%clk 0:00:10]}
43. gxf4 {[%clk 0:00:16]}  Rc4 {[%clk 0:00:11]} 44. Rb2 {[%clk 0:00:17]}  Rd4 {[%clk 0:00:12]} 45. a4 {[%clk 0:00:17]}  Rxd5 {[%clk 0:00:11]}
46. b5 {[%clk 0:00:18]}  axb5 {[%clk 0:00:09]} 47. axb5 {[%clk 0:00:19]}  Rc5 {[%clk 0:00:12]} 48. b6 {[%clk 0:00:19]}  Rc8 {[%clk 0:00:13]}
49. Ke3 {[%clk 0:00:20]}  Kf6 {[%clk 0:00:14]} 0-1